Cogmind - Beta 16 @@@ ROGUE MODE // 2025.10.25 @ 21:03:42 Player: Mxykikker Result: Self-destructed Performance ------------- Evolutions (0) 0 Regions Visited (3) 600 Robots Destroyed (15) 75 Value Destroyed (576) 576 Prototype IDs (19) 380 Alien Tech Used (0) 0 Bonus (300) 300 TOTAL SCORE: 1931 Bonus ------- Registered with UFD 300 Cogmind --------- Core Integrity 3/250 Matter 300/300 Energy 160/160 System Corruption 0% Temperature Cool (0) Movement Rolling (100) Location -7/Scraptown Parts ------- > --- POWER (1) -------- Light Nuclear Core > --- PROPULSION (2) --- Armored Huge Wheel > --- UTILITY (2) ------ (None) > --- WEAPON (2) ------- Ripper Power Sword > --- INVENTORY (5) ---- Subdweller Monowheel Improved Melee Analysis Suite Improved Actuator Array Improved Actuator Array Rainbow Chip Peak State ------------ > --- POWER ------------ Light Nuclear Core > --- PROPULSION ------- Armored Huge Wheel > --- UTILITY ---------- Scrap Shield > --- WEAPON ----------- Junk Cannon > --- INVENTORY -------- Subdweller Monowheel Improved Melee Analysis Suite Improved Actuator Array Improved Actuator Array Rainbow Chip [Rating: 29] Favorites ----------- Power Subdweller Power Source Engine Subdweller Power Source Power Core Light Nuclear Core Propulsion Subdweller Monowheel Wheel Subdweller Monowheel Hover Unit Gravmag System Utility Scrap Shield Storage Small Storage Unit Protection Scrap Shield Weapon Slug Cannon Energy Gun Subdweller Laser Energy Cannon Beam Cannon Ballistic Gun Subdweller Machine Gun Ballistic Cannon Slug Cannon Launcher Grenade Launcher Special Weapon Junk Cannon Slashing Weapon Power Sword Build | -11 -10 -10 -7 ------- Run | Yrd Mat Sub Scr Slots Evolved . | . . . . Power . | . . . . Propulsion . | . . . . Utility . | . . . . Weapon . | . . . . Parts Attached 28 | 6 . 16 6 Power 4 | 1 . 2 1 Engine 3 | 1 . 2 . Core 1 | . . . 1 Reactor . | . . . . Propulsion 9 | 2 . 5 2 Treads . | . . . . Leg . | . . . . Wheel 8 | 2 . 5 1 Hover 1 | . . . 1 Flight . | . . . . Utility 4 | 1 . 3 . Device . | . . . . Storage 1 | 1 . . . Processor . | . . . . Hackware . | . . . . Protection 3 | . . 3 . Artifact . | . . . . Weapon 11 | 2 . 6 3 Energy Gun 3 | 2 . 1 . Energy Cannon 1 | . . 1 . Ballistic Gun 1 | . . 1 . Ballistic Cannon 2 | . . 2 . Launcher 1 | . . 1 . Special Weapon 1 | . . . 1 Impact Weapon . | . . . . Slashing Weapon 2 | . . . 2 Piercing Weapon . | . . . . Special Melee Weapon . | . . . . Unidentified Prototypes 1 | . . . 1 Parts Lost 6 | . . 5 1 Power . | . . . . Propulsion 3 | . . 3 . Utility 2 | . . 1 1 Weapon 1 | . . 1 . Highest Loss Streak 2 | . . 2 1 To Critical Strikes . | . . . . Average Backups 4 | . . 4 4 Power . | . . . . Propulsion . | . . . . Utility 1 | . . 1 3 Weapon 1 | . . 2 . Tool/Special . | . . . . Unused Backups 7 | . . . 7 Power 1 | . . . 1 Propulsion . | . . . . Utility 5 | . . . 5 Weapon 1 | . . . 1 Tool/Special . | . . . . Average Slot Usage (%) 75 | . 85 77 69 Engine 10 | . 14 14 3 Core 3 | . . . 10 Wheel 20 | . 28 21 16 Storage 1 | . 14 . . Protection 12 | . . 12 14 Energy Gun 9 | . 28 10 3 Energy Cannon 2 | . . 3 . Ballistic Cannon 10 | . . 13 7 Slashing Weapon 3 | . . . 12 Peak Build Rating 29 | 6 6 18 29 Average Rating 15 | 4 6 13 20 On Entrance 7 | . 6 6 18 Avg Prop Armor Cover (%) 1 | . . 1 1 Naked Turns . | . . . . Heaviest Build 37 | 14 14 34 37 Greatest Support 36 | 26 26 36 28 Greatest Overweight (x) 11 | . . 11 1 Average Overweight (x) 1 | . . 1 . Largest Inventory Capacity 8 | 8 8 8 5 Average Capacity 5 | 6 8 5 5 Most Carried 5 | 1 2 5 5 Average Carried 4 | . 1 4 4 Final Capacity 8 | 8 8 5 5 Final Carried 5 | . 2 5 5 Class Distribution -------------------- 64% | Subdweller-Mutant 35% | Mutant Dominant Class ---------------- Mutant | -10/Materials Subdweller-Mutant | -10/Subcaves Mutant | -7/Scraptown Resources | -11 -10 -10 -7 ----------- Run | Yrd Mat Sub Scr Matter Collected 1012 | 201 . 674 137 Remotely . | . . . . Salvage Created 601 | . 60 471 70 Parts 36 | . 4 26 6 Haulers Intercepted 1 | . 1 . . Recyclers Shooed . | . . . . Parts Field Recycled . | . . . . Retrieved Matter . | . . . . Parts Self-Destructed 6 | . . 6 . Prevented . | . . . . Parts Restored . | . . . . Kills | -11 -10 -10 -7 ------- Run | Yrd Mat Sub Scr Combat Hostiles Destroyed 14 | . . 13 1 Melee 1 | . . . 1 Guns 4 | . . 4 . Cannons 8 | . . 8 . AOE 1 | . . 1 . Classes Destroyed 5 | . 1 3 1 Hauler 1 | . 1 . . Sentry 1 | . . 1 . Cobbler 2 | . . 2 . Subdweller 12 | . . 12 . Scrapper 1 | . . . 1 Best Kill Streak 2 | . 1 2 1 Combat Bots Only 2 | . . 2 1 Max Kills in Single Turn 2 | . 1 2 1 Gunslinging . | . . . . Exploded 1 | . . 1 . Melee 1 | . . . 1 Uniques/NPCs Destroyed . | . . . . Combat | -11 -10 -10 -7 -------- Run | Yrd Mat Sub Scr Hostile Shots Fired 97 | . . 83 14 Missed 27 | . . 26 1 Hits 70 | . . 57 13 Projectile 70 | . . 57 13 AOE 4 | . . 4 . Critical Strikes 3 | . . 2 1 Damage Taken 1725 | . . 1514 211 Core 247 | . . 223 24 Absorbed by Shields . | . . . . Core Remaining (%) 100 | 100 . . . Volleys Fired 92 | . 3 89 . Largest 2 | . 2 2 . Hottest 100 | . 80 100 . Shots Fired 179 | . 6 173 . Gun 44 | . 6 38 . Cannon 132 | . . 132 . Launcher 3 | . . 3 . Special . | . . . . Kinetic 87 | . . 87 . Thermal 71 | . . 71 . Explosive 3 | . . 3 . Electromagnetic 18 | . 6 12 . Robot Hit Streak 14 | . 1 14 . Robot Miss Streak 3 | . 1 3 . Penetration Max . | . . . . Secondary Targets . | . . . . Shots Hit Robots 90 | . 3 86 1 Core Hits 27 | . 1 25 1 Critical Kills 1 | . . 1 . Critical Parts Destroyed . | . . . . Critical Strikes 4 | . . 4 . Destroy 2 | . . 2 . Blast 2 | . . 2 . Melee Attacks 2 | . . . 2 Impact . | . . . . Slashing 2 | . . . 2 Piercing . | . . . . Sneak Attacks . | . . . . Combat Hostiles . | . . . . Follow-up Attacks . | . . . . Damage Inflicted 1894 | . 43 1815 36 Guns 428 | . 43 385 . Cannons 1374 | . . 1374 . Explosions 56 | . . 56 . Melee 36 | . . . 36 Ramming . | . . . . Kinetic 1039 | . . 1039 . Thermal 629 | . . 629 . Explosive 56 | . . 56 . Electromagnetic 134 | . 43 91 . Impact . | . . . . Slashing 36 | . . . 36 Piercing . | . . . . Highest Corruption . | . . . . Average Corruption . | . . . . Corruption Purged . | . . . . Corruption Blocked . | . . . . Overload Shots . | . . . . Overflow Damage 7 | . . 7 . Projectiles 7 | . . 7 . Explosions . | . . . . Melee . | . . . . Knockbacks 11 | . . 11 . Impact . | . . . . Kinetic 11 | . . 11 . Secondary . | . . . . Self-Inflicted Damage 15 | . . 15 . Shots 1 | . . 1 . Rammed . | . . . . Targets Rammed . | . . . . Kicked . | . . . . Crushed . | . . . . Highest Temperature 54 | . 54 . . Average Temperature 28 | . 28 . . Received Heat Transfer 171 | . . 147 24 Siege Activations . | . . . . Martial Activations . | . . . . Shielding Activations . | . . . . Robots Disrupted . | . . . . Combat Hostiles . | . . . . Robots Corrupted . | . . . . Combat Hostiles . | . . . . Parts Fried 1 | . . 1 . Impact Corruptions . | . . . . Robots Melted . | . . . . Combat Hostiles . | . . . . Parts Melted 1 | . . 1 . Heat Transferred 1138 | . . 1138 . Parts Sabotaged . | . . . . Parts Stolen . | . . . . Parts Stripped . | . . . . Power Chain Reactions . | . . . . Alert | -11 -10 -10 -7 ------- Run | Yrd Mat Sub Scr Maximum Alert Level . | . . . . Low Security (%) 100 | 100 100 . . Level 1 . | . . . . Level 2 . | . . . . Level 3 . | . . . . Level 4 . | . . . . Level 5 . | . . . . High Security . | . . . . Max Security . | . . . . Peak Influence 7 | . 7 . . Initial . | . . . . Average . | . . . . Influence Increases 27 | . 7 20 . Destroy 0b10 Robot/C 20 | . . 20 . Destroy 0b10 Robot/NC 5 | . 5 . . Destroy Leader 2 | . 2 . . Influence Decreases 27 | . 7 20 . Time Decay 25 | . 7 18 . Lost Part 2 | . . 2 . Squads Dispatched . | . . . . Investigation . | . . . . Extermination . | . . . . Reinforcement . | . . . . Assault . | . . . . Garrison . | . . . . Intercept . | . . . . Searches Triggered . | . . . . Construction Impeded . | . . . . Haulers Reinforced . | . . . . Active Scanning Responses . | . . . . Cargo Convoy Interrupts . | . . . . Stealth | -11 -10 -10 -7 --------- Run | Yrd Mat Sub Scr Distress Signals . | . . . . Communications Jammed . | . . . . Distress Signals . | . . . . Times Spotted 30 | . . 16 14 Peak Tracking Total 34 | . . 2 34 Tactical Retreats . | . . . . Traps | -11 -10 -10 -7 ------- Run | Yrd Mat Sub Scr Traps Triggered 2 | . . 2 . Indirectly . | . . . . Trap Hack Attempts . | . . . . Triggered . | . . . . Disarmed . | . . . . Reprogrammed . | . . . . Reused . | . . . . Traps Extracted . | . . . . Installed . | . . . . Triggered . | . . . . Machines | -11 -10 -10 -7 ---------- Run | Yrd Mat Sub Scr Machines Disabled 2 | . . 1 1 Max in Single Turn 1 | . . 1 1 Machines Repaired . | . . . . Machines Dismantled . | . . . . Machines Sabotaged . | . . . . Overloaded Fab Kills . | . . . . Hacking | -11 -10 -10 -7 --------- Run | Yrd Mat Sub Scr Machines Accessed 5 | . 1 2 2 Terminals 1 | . 1 . . Fabricators . | . . . . Repair Stations . | . . . . Recycling Units . | . . . . Scanalyzers . | . . . . Garrison Access . | . . . . Total Hacks 14 | . 1 4 9 Successful 13 | . . 4 9 Failed 1 | . 1 . . Catastrophic 1 | . 1 . . Database Lockouts . | . . . . Manual 1 | . 1 . . Terminals 1 | . 1 . . Fabricators . | . . . . Repair Stations . | . . . . Recycling Units . | . . . . Scanalyzers . | . . . . Garrison Access . | . . . . Terminal Hacks 13 | . . 4 9 Record 11 | . . 3 8 Proto ID Catalog 2 | . . 1 1 Fabricator Hacks . | . . . . Repair Station Hacks . | . . . . Recycling Unit Hacks . | . . . . Scanalyzer . | . . . . Garrison Access Hacks . | . . . . Unauthorized Hacks . | . . . . Terminals . | . . . . Fabricators . | . . . . Repair Stations . | . . . . Recycling Units . | . . . . Scanalyzers . | . . . . Garrison Access . | . . . . Data Cores Recovered . | . . . . Used . | . . . . Hacking Detections 1 | . 1 . . Full Trace Events . | . . . . Feedback Events . | . . . . Feedback Blocked . | . . . . Robot Schematics Acquired . | . . . . Robots Built . | . . . . Authchips . | . . . . Time . | . . . . Total Robot Build Rating . | . . . . Part Schematics Acquired . | . . . . Parts Built . | . . . . Authchips . | . . . . Time . | . . . . Total Part Build Rating . | . . . . Part Studies Acquired . | . . . . Parts Repaired . | . . . . Time . | . . . . Parts Recycled . | . . . . Recycled Matter . | . . . . Retrieved Matter . | . . . . Retrieved Components . | . . . . Parts Scanalyzed . | . . . . Part Schematics Acquired . | . . . . Parts Damaged . | . . . . Bothacking | -11 -10 -10 -7 ------------ Run | Yrd Mat Sub Scr Used RIF Installer . | . . . . Robots Hacked . | . . . . Non-combat . | . . . . Combat . | . . . . Robot Hacks Applied . | . . . . Relay Couplers Released . | . . . . Fabnet Peak Effective % . | . . . . Robots Rewired . | . . . . Allies Hacked . | . . . . Hacks Repelled . | . . . . Allies | -11 -10 -10 -7 -------- Run | Yrd Mat Sub Scr Total Allies . | . . . . Largest Group . | . . . . Highest-Rated Group . | . . . . Highest-Rated Ally . | . . . . Total Orders . | . . . . Ally Attacks . | . . . . Total Damage . | . . . . Kills . | . . . . Allies Corrupted . | . . . . Allies Melted . | . . . . Intel | -11 -10 -10 -7 ------- Run | Yrd Mat Sub Scr Active Infowar (turns) . | . . . . Robot Analysis Total . | . . . . Derelict Logs Recovered 7 | . . 2 5 Drone Launches . | . . . . Drone Recoveries . | . . . . Exploration | -11 -10 -10 -7 ------------- Run | Yrd Mat Sub Scr Turns Passed 3966 | 47 146 2637 1136 Spaces Moved 2600 | 44 72 1573 911 Core 124 | 4 . 120 . Treads . | . . . . Legs . | . . . . Wheels 2476 | 40 72 1453 911 Hover . | . . . . Flight . | . . . . Fastest Speed 50 | 50 90 90 100 Average Speed 133 | 85 90 145 117 Slowest Speed 600 | 90 90 600 120 Overloaded Moves . | . . . . Propulsion Burnouts . | . . . . Robots Hopped . | . . . . Potential Cave-ins . | . . . . Cave-ins Triggered . | . . . . Exploration Rate (%) 40 | 4 13 72 72 Regions Visited 3 Branch Regions 2 Pre-discovered Areas 5 | . . 3 2 Known Exits Taken . | . . . . Unknown Exits Taken 3 | 1 1 1 . Scrap Searched 7 | . . 4 3 Spaces Dug . | . . . . Terrain Destroyed 16 | . . 16 . Melee . | . . . . Projectile 9 | . . 9 . AOE 7 | . . 7 . Terrain Rammed . | . . . . Walls Destroyed . | . . . . Machines Disabled . | . . . . Actions | -11 -10 -10 -7 --------- Run | Yrd Mat Sub Scr Total 2914 | 50 147 1743 974 Wait 122 | . 71 23 28 Move 2597 | 43 71 1572 911 Hop . | . . . . Pick Up 22 | 1 2 13 6 Fast Attach 20 | 5 . 7 8 Attach 6 | 1 . 2 3 Detach 2 | . . 1 1 Swap 10 | . . 10 . Drop 28 | . . 13 15 Fire 92 | . 3 89 . Melee 2 | . . . 2 Ram . | . . . . Kick . | . . . . Crush . | . . . . Escape Stasis . | . . . . Rewire . | . . . . Trap . | . . . . Miscellaneous 13 | . . 13 . Route ------- -11/Scrapyard -10/Materials -10/Subcaves (discovered 4 exits: [*Mat x2] / *Scr x2) -7/Scraptown (discovered 1 exit: [*Fac]) History --------- Turn | Location | Event 15 | -11/Scrapyard | Discovered new exit (range 14) 48 | -11/Scrapyard | Entered Materials 49 | -10/Materials | Met a group of wandering Federalists 193 | -10/Materials | Discovered new exit (range 3) 194 | -10/Materials | Entered Subcaves 195 | -10/Subcaves | Continued accompanying wandering Federalists (5) 195 | -10/Subcaves | Approached by a straggling Scientist 315 | -10/Subcaves | Build established: Mutant 394 | -10/Subcaves | Shifting Twisted Machinery released Sub. Machine Gun 420 | -10/Subcaves | Shifting Twisted Machinery released Slug Cannon 640 | -10/Subcaves | Scientist uncovered a shortcut to Scraptown 751 | -10/Subcaves | A swath of the cavern ceiling suddenly collapsed 795 | -10/Subcaves | Shifting Twisted Machinery released Piercing Trap 809 | -10/Subcaves | Shifting Twisted Machinery released Barrage Gun 822 | -10/Subcaves | Build established: Subdweller-Mutant 886 | -10/Subcaves | Visited Clippyterm 889 | -10/Subcaves | Learned location of Extension (-6) 889 | -10/Subcaves | Learned location of Section 7 (-2) 1157 | -10/Subcaves | Shifting Twisted Machinery released Battle Cannon 1176 | -10/Subcaves | Shifting Twisted Machinery released Slug Cannon 1263 | -10/Subcaves | Discovered new exit (range 11) 1281 | -10/Subcaves | Discovered new exit (range 12) 1348 | -10/Subcaves | Core integrity fell below 50% 1526 | -10/Subcaves | Disturbed a concealed Subdweller 1797 | -10/Subcaves | Learned location of Zion (-6) 1797 | -10/Subcaves | Met a Zionite searching for "candidates" 1871 | -10/Subcaves | Learned Materials stockpile data 1952 | -10/Subcaves | Visited 4L-MR0's lab 1969 | -10/Subcaves | Found Rainbow Chip 2034 | -10/Subcaves | Core integrity fell below 20% 2831 | -10/Subcaves | Entered Scraptown 3004 | -7/Scraptown | Discovered new exit (range 11) 3065 | -7/Scraptown | Scanned Subdweller tech in exchange for log data 3068 | -7/Scraptown | Learned Research stockpile data 3069 | -7/Scraptown | Learned Factory trap positions 3070 | -7/Scraptown | Learned Research non-interactive machine intel 3262 | -7/Scraptown | Visited Cave Peace 3317 | -7/Scraptown | Visited Cyclists 3365 | -7/Scraptown | Build established: Mutant 3578 | -7/Scraptown | Visited IN-MT5's Study 3605 | -7/Scraptown | Visited Fellowship of the Rings 3616 | -7/Scraptown | Visited SPCMW 3663 | -7/Scraptown | Visited CPS Storage 3678 | -7/Scraptown | Visited Junk Repository 3718 | -7/Scraptown | Visited UFD Registry 3733 | -7/Scraptown | Registered with UFD as "Kinetibucket" 3779 | -7/Scraptown | Visited Science Guys 3819 | -7/Scraptown | Visited Junk Cannon Lab 3836 | -7/Scraptown | Found Prototype Special Weapon 3836 | -7/Scraptown | Identified Junk Cannon 3855 | -7/Scraptown | Attacked by Scraptown defenders 3914 | -7/Scraptown | Visited Junk Repository 3937 | -7/Scraptown | Visited Chapter 10 3967 | -7/Scraptown | Self-destructed Last Messages --------------- 03846_ Acquired Ripper. 03855_ Cannon Storage breached. 03855_ ANNOUNCEMENT: Intruder alert! Defend Scraptown! 03865_ 1I-XXG(j) destroyed. 03892_ Acquired 70 matter. 03931_ RD-BNK: "RECYCLE! MUST RECYCLE NOW!" 03932_ RD-BNK: "CAN SOMEONE POINT ME TO THE NEAREST RECYCLING UNIT?" 03959_ ANNOUNCEMENT: Triborg tracking relay activated. Stay clear or you only have yourself to blame! 03960_ 27-859(j): "Defend Scraptown!" [Achievement: Hunted] 03965_ Penetrated by Bolt. 03966_ Critical hit (Destroy). 03967_ Optimus: "Hey you're that new member, I knew your registry entry had something suspicious about it!" 03967_ Scrap Shield destroyed. Map ----- +----------------------------------------------------+ | ?????????????????????????????????????????????????? | | ?????????????????????????????????????????????????? | | ?????????????????????????????????????????????????? | | ?????????????????????????????????????????????????? | | ?????????????????????????????????????????????????? | | ?????????????????????????????????????????????????? | | ?????????????????????????????????????????????????? | | ?????????????????????????????????????????????????? | | ?????????????????????????????????????????????????? | | ?????????????????????????????????????????????????? | | ?????????????????????????????????????????????????? | | ???????????????????????????? ?????????????????? | | ???????????????????????????? "???????????????? | | ???????????????????????????? "???????????????? | | ???????????????????????????? "#??????????????? | | ???????????????????????????? ??????????????? | | ???????????????????????????" "#??????????????? | | ???????????????????????????" "#??????????????? | | ???????????????????????????" "#??????????????? | | "????????????????????????#"" "#??????????????? | | "????????????????????????#"" "#??????????????? | | ""???????????????????????#"" "#???"??????????? | | ""??????? ????????????###"" "#?? "???????? | | ""???? p" ######### #""E "## "???????? | | ""????? "" EjE 3 p ????????? | | "" ??? "" h r @ "#??????????????? | | ""#? ? " ######### #"" "#??????????????? | | ""#? "" "" ?????????###"" "#??????????????? | | ""#?? "" "" ????????????#"" "#??????????????? | | ""#??? ????????????#"" "####???????????? | | ""#???? ?????????????#"" "## ########????? | | ""###### ################"" "## # #"#??? | | """""""""""""""""""""""""""" "## "#??? | | """""""""""""""""""""""""""" "#??? | | "## ""#??? | | "## "#??? | | "## """ "#??? | | ## " " "#??? | | # """""" "#??? | | """"""""""" """"""""""" """""" ## """"""" "???? | | ########### ########### ###### ##########?????? | | "# #?# # #??????????????? | | # | #?# # #??????????????? | | " ""# *!=#?# # # # #??????????????? | | " ""#""" "### ##?# # !=#? # #??????????????? | | ""#" "#|[=!#?# #!*]#??# #??????????????? | | """"#"" "# |#?##?#####??# #??????????????? | | """#"" "# #???????????# ??????????????? | | "#"" "# #???????????? ??????????????? | | """#"" "#|| #???????????? ?????????????? | +----------------------------------------------------+ Best States ------------- Heat Dissipation 25 Energy Generation 15 Energy Capacity 250 Matter Stores 300 Matter Capacity 300 Sight Range 16 Terrain Scan Density 10 Armor Coverage 800 Evasion (%) 42 Item Schematics ----------------- None Robot Schematics ------------------ None Fabricated ------------ Nothing Repaired ---------- Nothing Studied --------- None Alien Tech Used ----------------- None Achievements -------------- Art Critic Hunted Low-level Research Challenges ------------ None Game ------ Seed BlastSwordJetlance Manual? 0 Play Time 00:28:13 Cumulative 79.7 hours Start 2025.10.25 @ 20:28:00 End 2025.10.25 @ 21:03:42 Sessions 1 Manual Loads 0 Difficulty Rogue Special Mode None Game No. 121 Rogue 121 Adventurer 0 Explorer 0 Win Type - Total 0 Types 0/0/0/0/0/0/0/0/0/0 Lore% 27 Gallery% 30 Achievement% 21 Wizard Run 0 Options --------- Layout 1 ASCII 0 Keyboard 0 Movement Arrows Keybinds 0 Fullscreen 1 Font 24/Smallcaps Map View 50x35 Zoom Use 0% Tactical HUD 1 Map Filters NONE Filters NONE Steam 1 RUN: 173824ed-a35d-492d-9adb-ea545724ee04